fUST/lending_fUST_20250916
["ID","MTS","AMOUNT","RATE_DAILY","PERIOD"]
[385667735,1757961038439,-1509.80889507,0.00023696,2]
[385667737,1757961038449,-4189.53355084,0.00023696,2]
[385667743,1757961038493,-1363.99945724,0.00023696,2]
[385667745,1757961038504,-2908.57278782,0.00023696,2]
[385667747,1757961038515,-14369.3006271,0.00023696,2]
[385667993,1757961041042,-794.8709996,0.00023696,2]
[385667995,1757961041052,-153.0,0.00023742,2]
[385667997,1757961041061,-153.0,0.00023742,2]
[385667999,1757961041071,-38.5900473,0.00023742,2]
[385668001,1757961041082,-114.4099527,0.00023742,2]
[385668003,1757961041091,-153.0,0.000238,2]
[385668005,1757961041100,-153.0,0.000238,2]
[385668007,1757961041109,-153.0,0.000238,2]
[385668009,1757961041119,-153.0,0.000238,2]
[385668011,1757961041127,-901.0,0.00023849,2]
[385668013,1757961041136,-264.1438859,0.00023873,2]
[385668015,1757961041148,-563.27660365,0.00023873,2]
[385668018,1757961041161,-600.61475651,0.00023873,2]
[385668020,1757961041174,-1789.78537302,0.00023873,2]
[385668022,1757961041183,-837.28898528,0.00023873,2]
[385668024,1757961041193,-153.0,0.000239,2]
[385668026,1757961041203,-153.0,0.000239,2]
[385668029,1757961041217,-153.0,0.000239,2]
[385668031,1757961041227,-153.0,0.000239,2]
[385668033,1757961041236,-168.0,0.00023906,2]
[385668035,1757961041245,-219.56653296,0.00023928,2]
[385668037,1757961041255,-201.11982652,0.00023928,2]
[385668039,1757961041265,-4813.05872222,0.00023929,2]
[385668041,1757961041279,-12006.26705027,0.00023929,2]
[385668043,1757961041294,-1332.62774056,0.00023929,2]
[385668045,1757961041304,-162.380719,0.00023929,2]
[385668047,1757961041313,-1970.73,0.00023933,3]
[385668049,1757961041322,-233.52,0.00023933,10]
[385668051,1757961041331,-1518.1,0.00023942,2]
[385668053,1757961041340,-3838.17922077,0.00023943,2]
[385668055,1757961041349,-151.0,0.00023943,7]
[385668057,1757961041359,-2542.48911967,0.00023943,2]
[385668060,1757961041369,-28909.6109985,0.00023943,2]
[385668301,1757961043720,-8958.06746442,0.00023943,2]
[385668308,1757961043773,-898.0,0.00023943,2]
[385668321,1757961043883,-101045.09246342,0.00023943,2]
[385676310,1757961484132,280.41,0.00015984,2]
[385676353,1757961732151,10000.0,0.0002055,2]
[385676360,1757961756935,10000.0,0.0002055,2]
[385676379,1757961889570,2995.38953853,0.0002055,2]
[385676389,1757961982409,10000.0,0.0002055,2]
[385676392,1757962026300,-1314.49782443,0.00020792,2]
[385676396,1757962073884,1592.71880439,0.0002055,2]
[385676401,1757962111630,10000.0,0.0002055,2]
[385676405,1757962144328,2000.0,0.00027397,120]
[385676407,1757962160515,2999.91,0.0002055,2]
[385676465,1757962231898,-500.0,0.0002314,10]
[385676467,1757962231907,-68.34572785,0.00023165,2]
[385676473,1757962231951,-1118.12131039,0.00023165,2]
[385676474,1757962231962,-456.47960642,0.00023165,2]
[385676745,1757962239826,-352.14524183,0.00023165,2]
[385676806,1757962244403,-1979.72820801,0.00023165,2]
[385676807,1757962244413,-278.22097996,0.00023265,2]
[385676808,1757962244422,-162.42259492,0.000235,2]
[385676809,1757962244432,-714.64684827,0.0002377,2]
[385676810,1757962244441,-151.6061162,0.0002377,2]
[385676811,1757962244450,-162.42259492,0.000238,2]
[385676812,1757962244460,-194.6,0.00023833,10]
[385676813,1757962244469,-162.17,0.00023833,10]
[385676814,1757962244478,-810.87,0.00023833,10]
[385676815,1757962244487,-300.0,0.00023841,2]
[385676816,1757962244496,-300.0,0.00023841,2]
[385676817,1757962244505,-1475.68,0.00023842,2]
[385676818,1757962244514,-153.69657307,0.00023842,2]
[385676819,1757962244524,-500.0,0.00023842,2]
[385676820,1757962244534,-500.0,0.00023842,2]
[385676821,1757962244543,-500.0,0.00023842,2]
[385676822,1757962244552,-500.0,0.00023842,2]
[385676823,1757962244562,-500.0,0.00023842,2]
[385676824,1757962244571,-500.0,0.00023842,2]
[385676825,1757962244581,-516.4250078,0.00023842,2]
[385676826,1757962244590,-500.0,0.00023842,2]
[385676827,1757962244599,-500.0,0.00023842,2]
[385676828,1757962244608,-175.42966813,0.00023842,2]
[385676829,1757962244620,-324.57033187,0.00023842,2]
[385676830,1757962244629,-238.64106198,0.00023842,2]
[385676831,1757962244640,-261.35893802,0.00023842,2]
[385676832,1757962244651,-500.0,0.00023842,2]
[385676833,1757962244661,-136.64106198,0.00023842,2]
[385676874,1757962245823,-363.35893802,0.00023842,2]
[385676876,1757962245832,-500.0,0.00023842,2]
[385676878,1757962245842,-500.0,0.00023842,2]
[385676880,1757962245851,-500.0,0.00023842,2]
[385676882,1757962245861,-500.0,0.00023842,2]
[385676884,1757962245871,-500.0,0.00023842,2]
[385676886,1757962245880,-500.0,0.00023842,2]
[385676888,1757962245889,-500.0,0.00023842,2]
[385676889,1757962245899,-526.2344796,0.00023842,2]
[385676891,1757962245908,-500.0,0.00023842,2]
[385676893,1757962245918,-6771.96318563,0.00023843,2]
[385676900,1757962245980,-1987.855937,0.00023843,2]
[385677017,1757962400222,-200.0,0.00027767,120]
[385677018,1757962400360,-200.0,0.00027767,120]
[385677019,1757962400425,-13.0,0.00027767,120]
[385677020,1757962400448,-13.0,0.00028,120]
[385677021,1757962400510,-174.0,0.00028,120]
[385677022,1757962400572,-423.627934,0.00028,120]
[385677023,1757962400660,-200.0,0.000284,120]
[385677024,1757962400728,-886.82372,0.000284,120]
[385677025,1757962400751,-160.70464483,0.0002843,120]
[385677026,1757962400763,-200.0,0.00028723,120]
[385677027,1757962400772,-62.92328917,0.00028735,120]
[385677028,1757962400823,-137.07671083,0.00028735,120]
[385677029,1757962400833,-155.0,0.00029,120]
[385677030,1757962400843,-200.0,0.00029,120]
[385677031,1757962400852,-200.0,0.00029102,120]
[385677032,1757962400861,-231.47211261,0.00029155,120]
[385677033,1757962400958,-181.52788739,0.00029155,120]
[385677034,1757962400969,-705.29583261,0.000295,120]
[385677035,1757962401030,-38.25677343,0.000295,120]
[385677036,1757962401160,-59.5716346,0.000295,120]
[385677037,1757962401223,-944.45292996,0.000295,120]
[385677038,1757962401239,-23.22752084,0.000295,120]
[385677039,1757962401250,-1004.02456456,0.000298,120]
[385677063,1757962735747,-82.79915544,0.000298,120]
[385677064,1757962735776,-200.0,0.00029934,120]
[385677065,1757962735805,-301.85297259,0.00029998,120]
[385677066,1757962736116,-301.85297259,0.00029998,120]
[385677067,1757963229125,-280.46458315,0.00022212,2]
[385677068,1757963284098,342.08,0.00018981,7]
[385677185,1757963432261,-2719.53541685,0.0002199,2]
[385677187,1757963432274,-167.290372,0.00022663,2]
[385677188,1757963432284,-165.5720008,0.00022829,2]
[385677190,1757963432294,-300.0,0.00022972,2]
[385677193,1757963432308,-300.0,0.00022972,2]
[385677195,1757963432343,-506.61713057,0.00022973,2]
[385677198,1757963432387,-500.0,0.00022973,2]
[385677201,1757963432418,-500.0,0.00022973,2]
[385677203,1757963432428,-500.0,0.00022973,2]
[385677205,1757963432436,-500.0,0.00022973,2]
[385677207,1757963432446,-15898.12539135,0.00022973,2]
[385677209,1757963432454,-500.0,0.00022973,2]
[385677210,1757963432464,-503.49835,0.00022973,2]
[385677212,1757963432474,-501.45101962,0.00022973,2]
[385677214,1757963432483,-500.0,0.00022973,2]
[385677216,1757963432492,-500.0,0.00022973,2]
[385677218,1757963432501,-500.0,0.00022973,2]
[385677221,1757963432510,-493.76,0.0002298,10]
[385677224,1757963432520,-3602.62280443,0.00022987,2]
[385677227,1757963432529,-500.0,0.00022987,2]
[385677229,1757963432538,-500.0,0.00022987,2]
[385677232,1757963432547,-500.0,0.00022987,2]
[385677235,1757963432556,-500.0,0.00022987,2]
[385677237,1757963432565,-500.0,0.00022987,2]
[385677240,1757963432574,-500.0,0.00022987,2]
[385677243,1757963432583,-500.0,0.00022987,2]
[385677245,1757963432593,-238.591924,0.00022987,2]
[385677248,1757963432602,-500.0,0.00022987,2]
[385677251,1757963432611,-500.0,0.00022987,2]
[385677254,1757963432620,-500.0,0.00022987,2]
[385677257,1757963432629,-500.0,0.00022987,2]
[385677259,1757963432637,-500.0,0.00022987,2]
[385677261,1757963432646,-500.0,0.00022987,2]
[385677263,1757963432656,-500.0,0.00022987,2]
[385677265,1757963432665,-153.13388744,0.00022987,2]
[385677267,1757963432673,-500.0,0.00022987,2]
[385677269,1757963432682,-500.0,0.00022987,2]
[385677271,1757963432691,-500.0,0.00022987,2]
[385677284,1757963432808,-500.0,0.00022987,2]
[385677286,1757963432818,-453.331481,0.00022987,2]
[385677288,1757963432828,-205.65588227,0.00022987,2]
[385677289,1757963432837,-500.0,0.00022987,2]
[385677291,1757963432847,-500.0,0.00022987,2]
[385677292,1757963432856,-500.0,0.00022987,2]
[385677293,1757963432865,-500.0,0.00022987,2]
[385677294,1757963432874,-500.0,0.00022987,2]
[385677295,1757963432883,-500.0,0.00022987,2]
[385677296,1757963432892,-308.7284714,0.00022987,2]
[385677297,1757963432901,-500.0,0.00022987,2]
[385677298,1757963432911,-500.0,0.00022987,2]
[385677299,1757963432920,-500.0,0.00022987,2]
[385677300,1757963432930,-500.0,0.00022987,2]
[385677301,1757963432939,-500.0,0.00022987,2]
[385677302,1757963432949,-500.0,0.00022987,2]
[385677303,1757963432958,-500.0,0.00022987,2]
[385677304,1757963432967,-500.0,0.00022987,2]
[385677305,1757963432976,-500.0,0.00022987,2]
[385677306,1757963432985,-500.0,0.00022987,2]
[385677307,1757963432994,-500.0,0.00022987,2]
[385677308,1757963433003,-500.0,0.00022987,2]
[385677309,1757963433012,-500.0,0.00022987,2]
[385677310,1757963433021,-500.0,0.00022987,2]
[385677311,1757963433030,-500.0,0.00022987,2]
[385677312,1757963433039,-430.4508341,0.00022987,2]
[385677397,1757963435002,200.0,0.00027,120]
[385677398,1757963435024,74.62275,0.00027,120]
[385677399,1757963435702,274.62275,0.000284,120]
[385677414,1757963438066,-69.5491659,0.00022987,2]
[385677415,1757963438076,-500.0,0.00022987,2]
[385677416,1757963438086,-500.0,0.00022987,2]
[385677417,1757963438095,-180.4508443,0.00022987,2]
[385677418,1757963438107,-359.77061572,0.00022987,2]
[385677419,1757963438116,-500.0,0.00022987,2]
[385677420,1757963438126,-500.0,0.00022987,2]
[385677421,1757963438135,-500.0,0.00022987,2]
[385677422,1757963438144,-500.0,0.00022987,2]
[385677423,1757963438154,-500.0,0.00022987,2]
[385677424,1757963438166,-500.0,0.00022987,2]
[385677425,1757963438177,-214.09493047,0.00022987,2]
[385677426,1757963438187,-500.0,0.00022987,2]
[385677427,1757963438196,-500.0,0.00022987,2]
[385677428,1757963438205,-500.0,0.00022987,2]
[385677429,1757963438214,-500.0,0.00022987,2]
[385677430,1757963438224,-500.0,0.00022987,2]
[385677431,1757963438233,-500.0,0.00022987,2]
[385677432,1757963438242,-500.0,0.00022987,2]
[385677433,1757963438252,-500.0,0.00022987,2]
[385677434,1757963438261,-500.0,0.00022987,2]
[385677435,1757963438270,-500.0,0.00022987,2]
[385677436,1757963438279,-500.0,0.00022987,2]
[385677437,1757963438288,-500.0,0.00022987,2]
[385677438,1757963438298,-500.0,0.00022987,2]
[385677439,1757963438307,-500.0,0.00022987,2]
[385677440,1757963438318,-500.0,0.00022987,2]
[385677441,1757963438327,-500.0,0.00022987,2]
[385677442,1757963438337,-378.3346029,0.00022987,2]
[385677443,1757963438347,-500.0,0.00022987,2]
[385677444,1757963438357,-500.0,0.00022987,2]
[385677445,1757963438367,-500.0,0.00022987,2]
[385677446,1757963438377,-500.0,0.00022987,2]
[385677447,1757963438388,-500.0,0.00022987,2]
[385677448,1757963438397,-500.0,0.00022987,2]
[385677449,1757963438406,-500.0,0.00022987,2]
[385677450,1757963438416,-500.0,0.00022987,2]
[385677451,1757963438424,-500.0,0.00022987,2]
[385677452,1757963438433,-500.0,0.00022987,2]
[385677453,1757963438443,-350.0,0.00022987,2]
[385677454,1757963438452,-500.0,0.00022987,2]
[385677455,1757963438461,-500.0,0.00022987,2]
[385677456,1757963438470,-500.0,0.00022987,2]
[385677457,1757963438479,-500.0,0.00022987,2]
[385677458,1757963438488,-500.0,0.00022987,2]
[385677459,1757963438498,-500.0,0.00022987,2]
[385677460,1757963438507,-500.0,0.00022987,2]
[385677461,1757963438516,-500.0,0.00022987,2]
[385677462,1757963438525,-500.0,0.00022987,2]
[385677463,1757963438535,-500.0,0.00022989,2]
[385677464,1757963438551,-99541.04247713,0.0002299,2]
[385677465,1757963438591,-1622.60271518,0.00023163,2]
[385677466,1757963438618,-500.0,0.00023263,2]
[385677467,1757963438659,-1534.95,0.00023287,2]
[385677468,1757963438669,-250.0,0.00023288,2]
[385677469,1757963438679,-1622.60271516,0.00023422,2]
[385677470,1757963438688,-908.9840808,0.00023521,2]
[385677471,1757963438697,-1000.0,0.00023521,2]
[385677472,1757963438708,-1000.0,0.00023521,2]
[385677473,1757963438717,-502.23916512,0.00023521,2]
[385677474,1757963438726,-500.0,0.00023521,2]
[385677475,1757963438735,-500.0,0.00023521,2]
[385677476,1757963438744,-500.0,0.00023537,2]
[385677477,1757963438753,-186.63389238,0.000236,2]
[385677478,1757963438763,-153.0,0.000236,2]
[385677479,1757963438771,-389.8847087,0.000236,2]
[385677480,1757963438780,-10592.81255375,0.00023607,2]
[385677481,1757963438789,-1622.60271516,0.00023682,2]
[385677482,1757963438798,-3402.1270022,0.000237,2]
[385677483,1757963438807,-312.2,0.00023743,7]
[385677484,1757963438815,-300988.27616486,0.00023743,2]
[385677485,1757963438824,-186.63389238,0.000238,2]
[385677486,1757963438833,-153.0,0.000238,2]
[385677487,1757963438842,-500.0,0.00023811,2]
[385677488,1757963438850,-1741.19,0.00023842,2]
[385677489,1757963438859,-1741.19,0.00023842,2]
[385677490,1757963438868,-1741.19,0.00023842,2]
[385677491,1757963438877,-1741.19,0.00023842,2]
[385677492,1757963438886,-1741.19,0.00023842,2]
[385677493,1757963438896,-1741.19,0.00023842,2]
[385677494,1757963438905,-161.208564,0.00023843,7]
[385677495,1757963438917,-151.0,0.00023843,7]
[385677496,1757963438927,-160.0,0.00023846,2]
[385677497,1757963438935,-1683.13,0.0002386,3]
[385677498,1757963438946,-841.56,0.0002386,3]
[385677499,1757963438956,-420.78,0.0002386,3]
[385677500,1757963438966,-210.39,0.0002386,3]
[385677501,1757963438974,-631.21,0.0002386,3]
[385677502,1757963438983,-1741.19,0.00023869,2]
[385677503,1757963438992,-153.0,0.000239,2]
[385677504,1757963439001,-153.0,0.000239,2]
[385677505,1757963439010,-1622.60271516,0.00023941,2]
[385677506,1757963439019,-790.38777722,0.00023943,2]
[385677507,1757963439028,-151.0,0.00023973,2]
[385677508,1757963439037,-494.0,0.00023973,2]
[385677509,1757963439046,-151.0,0.00023973,2]
[385677510,1757963439055,-151.0,0.00023973,2]
[385677511,1757963439064,-151.0,0.00023973,2]
[385677512,1757963439073,-225.76846593,0.00023973,2]
[385677513,1757963439082,-151.0,0.00023973,2]
[385677514,1757963439090,-151.0,0.00023973,2]
[385677515,1757963439100,-253.95294012,0.00023973,2]
[385677516,1757963439109,-151.0,0.00023973,2]
[385677517,1757963439118,-500.0,0.00023973,2]
[385677518,1757963439127,-151.0,0.00023973,2]
[385677519,1757963439136,-1741.19,0.00023981,2]
[385677520,1757963439145,-861.98067433,0.00023982,2]
[385677521,1757963439155,-151.0,0.00023982,7]
[385677522,1757963439167,-151.0,0.00023982,2]
[385677523,1757963439177,-169.0,0.00023982,2]
[385677524,1757963439186,-151.0,0.00023982,2]
[385677525,1757963439195,-151.0,0.00023982,2]
[385677526,1757963439204,-151.0,0.00023982,2]
[385677527,1757963439214,-1741.19,0.00023989,2]
[385677528,1757963439223,-1741.19,0.00023989,2]
[385677529,1757963439231,-1741.19,0.00023989,2]
[385677530,1757963439241,-1741.19,0.00023989,2]
[385677531,1757963439250,-1741.19,0.00023989,2]
[385677532,1757963439259,-168.0,0.00024,2]
[385677533,1757963439269,-800.0,0.00024051,2]
[385677534,1757963439278,-168.0,0.00024075,2]
[385677535,1757963439287,-295.999999,0.00024075,2]
[385677536,1757963439297,-500.0,0.00024085,2]
[385677537,1757963439306,-328.0,0.00024093,3]
[385677538,1757963439315,-328.0,0.00024093,3]
[385677539,1757963439324,-328.0,0.00024093,3]
[385677540,1757963439334,-379.96448575,0.00024093,3]
[385677541,1757963439344,-186.63389238,0.000241,2]
[385677542,1757963439353,-800.0,0.00024106,2]
[385677543,1757963439365,-168.0,0.0002413,2]
[385677544,1757963439379,-166.13416733,0.0002414,2]
[385677545,1757963439388,-417.15472785,0.00024165,2]
[385677546,1757963439397,-217.82061966,0.00024165,2]
[385677547,1757963439408,-847.45018724,0.00024165,2]
[385677548,1757963439419,-160.0,0.00024167,2]
[385677549,1757963439430,-233.24851325,0.00024167,2]
[385677550,1757963439439,-160.0,0.00024167,2]
[385677551,1757963439448,-160.0,0.00024167,2]
[385677552,1757963439458,-3158.38955779,0.00024189,2]
[385677553,1757963439467,-4287.93,0.000242,7]
[385677554,1757963439476,-184.593072,0.000242,7]
[385677555,1757963439485,-1622.60271516,0.000242,2]
[385677556,1757963439495,-800.0,0.00024203,2]
[385677557,1757963439503,-800.0,0.00024212,2]
[385677558,1757963439513,-151.0,0.00024247,2]
[385677559,1757963439522,-494.0,0.00024247,2]
[385677560,1757963439531,-151.0,0.00024247,2]
[385677561,1757963439540,-500.0,0.00024247,2]
[385677562,1757963439550,-169.0,0.00024256,2]
[385677563,1757963439560,-240.93027155,0.00024256,2]
[385677564,1757963439570,-151.0,0.00024256,2]
[385677565,1757963439579,-151.0,0.00024256,2]
[385677566,1757963439589,-160.0,0.00024264,2]
[385677567,1757963439599,-500.0,0.00024273,2]
[385677568,1757963439610,-347.52845765,0.00024273,2]
[385677569,1757963439620,-250.68086532,0.00024273,2]
[385677570,1757963439630,-501.12335706,0.00024273,2]
[385677571,1757963439639,-500.0,0.00024273,2]
[385677572,1757963439648,-500.0,0.00024273,2]
[385677573,1757963439658,-160.20451492,0.00024273,2]
[385677574,1757963439667,-500.0,0.00024273,2]
[385677575,1757963439676,-500.0,0.00024273,2]
[385677576,1757963439685,-500.0,0.00024273,2]
[385677577,1757963439694,-587.87228375,0.00024273,2]
[385677578,1757963439704,-500.0,0.00024273,2]
[385677579,1757963439713,-500.0,0.00024273,2]
[385677580,1757963439722,-500.0,0.00024273,2]
[385677581,1757963439731,-1741.19,0.00024292,2]
[385677582,1757963439740,-1741.19,0.00024299,2]
[385677583,1757963439749,-1741.19,0.00024299,2]
[385677584,1757963439758,-32766.61,0.000243,7]
[385677585,1757963439767,-150.0,0.000243,2]
[385677586,1757963439775,-186.63389238,0.000243,2]
[385677587,1757963439785,-1000.0,0.000243,2]
[385677588,1757963439793,-160.0,0.000243,7]
[385677589,1757963439802,-233.24851325,0.000243,7]
[385677591,1757963439811,-217.82061966,0.000243,7]
[385677592,1757963439820,-847.45018724,0.000243,7]
[385677593,1757963439830,-649.0,0.000243,2]
[385677594,1757963439838,-417.15472785,0.000243,7]
[385677595,1757963439848,-274.01834626,0.00024359,2]
[385677596,1757963439857,-150.0,0.000244,2]
[385677598,1757963439866,-168.0,0.00024412,2]
[385677600,1757963439875,-160.0,0.00024422,2]
[385677602,1757963439884,-389.4075545,0.00024438,2]
[385677604,1757963439893,-168.0,0.00024442,2]
[385677606,1757963439902,-4276.0,0.00024443,10]
[385677608,1757963439912,-198.0,0.00024521,2]
[385677610,1757963439921,-494.0,0.00024521,2]
[385677612,1757963439930,-198.0,0.00024521,2]
[385677614,1757963439939,-212.31691441,0.00024521,2]
[385677616,1757963439949,-198.0,0.0002453,2]
[385677618,1757963439958,-175.77017753,0.0002453,2]
[385677620,1757963439968,-168.0,0.00024551,2]
[385677622,1757963439977,-168.0,0.00024561,2]
[385677624,1757963439987,-869.82407473,0.0002459,3]
[385677626,1757963439997,-155.0,0.00024656,2]
[385677628,1757963440007,-1741.19,0.00024656,2]
[385677630,1757963440016,-1741.19,0.00024656,2]
[385677632,1757963440025,-160.0,0.00024657,3]
[385677634,1757963440033,-160.0,0.00024657,3]
[385677636,1757963440042,-150.0,0.00024657,2]
[385677638,1757963440051,-480.0,0.00024657,3]
[385677650,1757963440148,-480.0,0.00024657,3]
[385677652,1757963440158,-480.0,0.00024657,3]
[385677654,1757963440167,-480.0,0.00024657,3]
[385677656,1757963440179,-170.089,0.00024657,7]
[385677658,1757963440188,-172.91552239,0.00024657,7]
[385677660,1757963440197,-480.0,0.00024657,3]
[385677662,1757963440207,-511.21249219,0.00024657,3]
[385677664,1757963440216,-480.0,0.00024657,3]
[385677666,1757963440226,-480.0,0.00024657,3]
[385677668,1757963440235,-160.0,0.00024657,3]
[385677669,1757963440244,-480.0,0.00024657,3]
[385677670,1757963440254,-233.24851325,0.00024657,3]
[385677671,1757963440263,-480.0,0.00024657,3]
[385677672,1757963440272,-480.0,0.00024657,3]
[385677673,1757963440281,-480.0,0.00024657,3]
[385677675,1757963440290,-480.0,0.00024657,3]
[385677677,1757963440299,-1070.64,0.00024657,3]
[385677679,1757963440308,-480.0,0.00024657,3]
[385677681,1757963440316,-480.0,0.00024657,3]
[385677683,1757963440325,-480.0,0.00024657,3]
[385677685,1757963440334,-424.04,0.00024657,3]
[385677687,1757963440343,-480.0,0.00024657,3]
[385677689,1757963440352,-480.0,0.00024657,3]
[385677691,1757963440361,-480.0,0.00024657,3]
[385677692,1757963440371,-480.0,0.00024657,3]
[385677694,1757963440381,-618.16,0.00024657,3]
[385677696,1757963440390,-480.0,0.00024657,3]
[385677698,1757963440399,-480.0,0.00024657,3]
[385677700,1757963440408,-480.0,0.00024657,3]
[385677702,1757963440418,-480.0,0.00024657,3]
[385677704,1757963440427,-480.0,0.00024657,3]
[385677706,1757963440436,-217.82061966,0.00024657,3]
[385677708,1757963440445,-2446.03,0.00024657,3]
[385677710,1757963440455,-1974.94,0.00024657,3]
[385677712,1757963440465,-160.0,0.00024657,3]
[385677714,1757963440475,-480.0,0.00024657,3]
[385677716,1757963440484,-438.55069859,0.00024657,3]
[385677718,1757963440494,-480.0,0.00024657,3]
[385677720,1757963440503,-508.11320462,0.00024657,3]
[385677722,1757963440512,-404.45856065,0.00024657,3]
[385677724,1757963440521,-480.0,0.00024657,3]
[385677726,1757963440530,-480.0,0.00024657,3]
[385677728,1757963440539,-480.0,0.00024657,3]
[385677730,1757963440548,-160.0,0.00024657,3]
[385677732,1757963440557,-516.86,0.00024657,3]
[385677734,1757963440567,-661.92,0.00024657,3]
[385677736,1757963440576,-847.45018724,0.00024657,3]
[385677738,1757963440586,-480.0,0.00024657,3]
[385677739,1757963440596,-480.0,0.00024657,3]
[385677741,1757963440605,-3534.9,0.00024657,3]
[385677743,1757963440614,-480.0,0.00024657,3]
[385677744,1757963440624,-480.0,0.00024657,3]
[385677745,1757963440633,-480.0,0.00024657,3]
[385677746,1757963440643,-417.15472785,0.00024657,3]
[385677747,1757963440652,-498.48,0.00024657,3]
[385677748,1757963440662,-168.0,0.00024657,2]
[385677749,1757963440672,-500.0,0.00024658,2]
[385677750,1757963440681,-168.0,0.00024672,2]
[385677751,1757963440691,-150.0,0.00024718,2]
[385677752,1757963440700,-150.0,0.00024718,2]
[385677753,1757963440711,-150.0,0.00024718,2]
[385677754,1757963440720,-150.0,0.00024718,2]
[385677755,1757963440732,-977.0,0.00024718,2]
[385677756,1757963440741,-634.0,0.00024718,2]
[385677757,1757963440751,-2156.0,0.00024718,2]
[385677758,1757963440762,-494.0,0.00024795,2]
[385677759,1757963440773,-13462.34978862,0.000248,3]
[385677760,1757963440783,-417.15472785,0.000248,3]
[385677761,1757963440792,-260.0,0.00024812,2]
[385677762,1757963440801,-1741.19,0.00024819,2]
[385677763,1757963440811,-280.10211624,0.00024821,2]
[385677764,1757963440820,-1000.0,0.00024821,2]
[385677765,1757963440829,-1000.0,0.00024821,2]
[385677766,1757963440838,-1000.0,0.00024821,2]
[385677767,1757963440847,-1000.0,0.00024821,2]
[385677768,1757963440856,-168.0,0.00024821,2]
[385677769,1757963440865,-500.0,0.00024873,2]
[385677770,1757963440874,-624.68321846,0.00024873,2]
[385677771,1757963440884,-150.0,0.00024873,2]
[385677772,1757963440893,-230.35488053,0.00024873,2]
[385677773,1757963440903,-500.0,0.00024873,2]
[385677774,1757963440913,-181.21081558,0.00024873,2]
[385677775,1757963440922,-500.0,0.00024873,2]
[385677776,1757963440931,-500.0,0.00024873,2]
[385677777,1757963440941,-500.0,0.00024873,2]
[385677778,1757963440950,-500.0,0.00024873,2]
[385677779,1757963440959,-500.0,0.00024873,2]
[385677780,1757963440968,-150.0,0.00024873,2]
[385677781,1757963440976,-500.98179676,0.00024883,9]
[385677782,1757963440985,-500.0,0.00024886,9]
[385677783,1757963440995,-1741.19,0.00024898,2]
[385677784,1757963441004,-1741.19,0.00024898,2]
[385677785,1757963441013,-1741.19,0.00024898,2]
[385677786,1757963441022,-1741.19,0.00024898,2]
[385677787,1757963441031,-1741.21808567,0.00024898,2]
[385677788,1757963441040,-459743.972821,0.000249,2]
[385677789,1757963441049,-480.0,0.00024931,3]
[385677790,1757963441058,-492.53884194,0.00024931,3]
[385677791,1757963441067,-496.70433496,0.00024931,3]
[385677792,1757963441076,-480.0,0.00024931,3]
[385677793,1757963441085,-184.80669766,0.00024931,3]
[385677794,1757963441094,-480.0,0.00024931,3]
[385677795,1757963441103,-480.0,0.00024931,3]
[385677796,1757963441111,-480.0,0.00024931,3]
[385677797,1757963441120,-181.0,0.00024931,3]